[Event "FIDE WCCC Open-12 2024"]
[Site "Montesilvano"]
[Date "2024.11.24"]
[Round "9.15"]
[White "Zhang, Haoxuan"]
[Black "Golubovic, Erik"]
[Result "1/2-1/2"]
[ECO "B90"]
[WhiteElo "1951"]
[BlackElo "2147"]
[Annotator "RC"]
[PlyCount "159"]
[EventDate "2024.11.18"]
[EventType "swiss"]
[EventCountry "ITA"]
[SourceTitle "playchess.com"]
[Source "ChessBase"]
[SourceQuality "1"]
[TimeControl "5400+30"]

1. e4 {[%emt 0:01:06]} c5 {[%emt 0:00:14]} 2. Nf3 {[%emt 0:00:25]} d6 {[%emt 0:00:09]} 3. d4 {[%emt 0:00:37]} cxd4 {[%emt 0:00:08]} 4. Nxd4 {[%emt 0:00:57]} Nf6 {[%emt 0:00:08]} 5. Nc3 {[%emt 0:00:44]} a6 {[%emt 0:00:18]} 6. Be3 {[%emt 0:01:17]} e5 {[%emt 0:00:40]} 7. Nf3 {[%emt 0:00:58]} Qc7 {[%emt 0:03:11]} 8. a4 {[%emt 0:07:39]} b6 {[%emt 0:20:35]} 9. Be2 {[%emt 0:09:21]} Be7 {[%emt 0:01:25]} 10. O-O {[%emt 0:02:43]} O-O {[%emt 0:01:55]} 11. Nd2 {[%emt 0:06:26]} Be6 {[%emt 0:04:38]} 12. Bf3 {[%emt 1:04:17]} Nbd7 {[%emt 0:02:02]} 13. Qe2 {[%emt 0:00:00]} h6 {[%emt 0:03:52]} 14. Rfd1 {[%emt 0:00:00]} Rfe8 {[%emt 0:05:02]} 15. Nf1 {[%emt 0:00:00]} Bf8 {[%emt 0:02:08]} 16. h3 {[%emt 0:00:00]} Nc5 {[%emt 0:08:50]} 17. Qd2 {[%emt 0:00:00]} Ncd7 {[%emt 0:09:05]} 18. Ng3 {[%emt 0:00:00]} Rac8 {[%emt 0:02:38]} 19. Nf5 {[%emt 0:00:00]} Red8 {[%emt 0:12:41]} 20. Ng3 {[%emt 0:00:00]} Nb8 {[%emt 0:02:51]} 21. Rac1 {[%emt 0:00:00]} Nbd7 {[%emt 0:05:56]} 22. Nd5 {[%emt 0:00:00]} Qc6 {[%emt 0:03:36]} 23. Qb4 {[%emt 0:00:00]} Rb8 {[%emt 0:01:49]} 24. Nf5 {[%emt 0:00:00]} Bxd5 {[%emt 0:03:32]} 25. exd5 {[%emt 0:00:00]} Qc7 {[%emt 0:00:08]} 26. c3 {[%emt 0:00:00]} Re8 {[%emt 0:00:41]} 27. Be2 {[%emt 0:00:04]} Nc5 {[%emt 0:00:47]} 28. Qh4 {[%emt 0:01:14]} Qd8 {[%emt 0:03:08]} 29. Rc2 {[%emt 0:01:31]} Ra8 {[%emt 0:01:38]} 30. Kh1 {[%emt 0:01:44]} Nh7 {[%emt 0:00:47]} 31. Qxd8 {[%emt 0:00:05]} Rexd8 {[%emt 0:00:22]} 32. Ra1 {[%emt 0:00:26]} Nf6 {[%emt 0:00:31]} 33. b4 {[%emt 0:00:05]} Ncd7 {[%emt 0:00:23]} 34. Rd1 {[%emt 0:00:59]} Rdc8 {[%emt 0:00:32]} 35. Rcc1 {[%emt 0:00:43]} Kh7 {[%emt 0:00:42]} 36. g4 {[%emt 0:00:05]} g6 {[%emt 0:00:46]} 37. Ng3 {[%emt 0:00:05]} Be7 {[%emt 0:00:30]} 38. Kg2 {[%emt 0:00:32]} Kg7 {[%emt 0:00:36]} 39. f4 {[%emt 0:00:34]} exf4 {[%emt 0:00:27]} 40. Bxf4 {[%emt 0:00:02]} Ne8 {[%emt 0:00:34]} 41. Ne4 {[%emt 0:00:40]} Ndf6 {[%emt 0:00:10]} 42. Nf2 {[%emt 0:00:18]} Nd7 {[%emt 0:00:44]} 43. Nd3 {[%emt 0:01:17]} Bf6 {[%emt 0:00:31]} 44. Bd2 {[%emt 0:00:35]} Ne5 {[%emt 0:00:30]} 45. Nxe5 {[%emt 0:00:32]} Bxe5 {[%emt 0:00:01]} 46. Bd3 {[%emt 0:00:11]} Nf6 {[%emt 0:00:34]} 47. c4 {[%emt 0:01:21]} Nd7 {[%emt 0:00:40]} 48. Be3 {[%emt 0:00:47]} Bf6 {[%emt 0:00:49]} 49. Rc2 {[%emt 0:01:04]} Bg5 {[%emt 0:00:19]} 50. Bf2 {[%emt 0:00:33]} Bf6 {[%emt 0:00:15]} 51. Rdc1 {[%emt 0:00:56]} Bg5 {[%emt 0:00:56]} 52. Ra1 {[%emt 0:00:11]} Bf6 {[%emt 0:00:30]} 53. Raa2 {[%emt 0:00:06]} a5 {[%emt 0:00:24]} 54. b5 {[%emt 0:00:13]} Rab8 {[%emt 0:00:34]} 55. Ra3 {[%emt 0:00:29]} Re8 {[%emt 0:00:22]} 56. Be2 {[%emt 0:00:40]} Re7 {[%emt 0:00:30]} 57. Re3 {[%emt 0:00:27]} Rxe3 {[%emt 0:00:33]} 58. Bxe3 {[%emt 0:00:02]} Re8 {[%emt 0:00:16]} 59. Bf2 {[%emt 0:00:09]} Bg5 {[%emt 0:00:34]} 60. Bg3 {[%emt 0:00:16]} Be7 {[%emt 0:00:43]} 61. Bf2 {[%emt 0:00:23]} Bg5 {[%emt 0:00:37]} 62. Bf3 {[%emt 0:00:32]} Bf4 {[%emt 0:00:30]} 63. Bd4+ {[%emt 0:00:08]} Be5 {[%emt 0:00:15]} 64. Bf2 {[%emt 0:00:26]} Bf4 {[%emt 0:00:27]} 65. Re2 {[%emt 0:00:34]} Rxe2 {[%emt 0:00:24]} 66. Bxe2 {[%emt 0:00:07]} Bd2 {[%emt 0:00:28]} 67. Kf3 {[%emt 0:00:30]} Bb4 {[%emt 0:00:19]} 68. Bd4+ {[%emt 0:00:19]} Kf8 {[%emt 0:00:28]} 69. Bd3 {[%emt 0:00:41]} Bc5 {[%emt 0:00:19]} 70. Bc3 {[%emt 0:00:09]} Bg1 {[%emt 0:00:47]} 71. Bc2 {[%emt 0:01:42]} Bh2 {[%emt 0:00:20]} 72. Bd4 {[%emt 0:00:07]} Be5 {[%emt 0:00:20]} 73. Be3 {[%emt 0:00:05]} Kg7 {[%emt 0:00:09]} 74. h4 {[%emt 0:00:35]} Bc3 {[%emt 0:01:07]} 75. Ke4 {[%emt 0:00:51]} Bb4 {[%emt 0:00:51]} 76. Bf4 {[%emt 0:01:03]} Bc5 {[%emt 0:00:37]} 77. Kf3 {[%emt 0:00:48]} Bb4 {[%emt 0:00:37]} 78. Bg3 {[%emt 0:00:56]} Bc5 {[%emt 0:00:23]} 79. Bf4 {[%emt 0:00:51]} Bb4 {[%emt 0:00:12]} 80. Ke4 {[%emt 0:01:30]} 1/2-1/2

[Event "FIDE WCCC Open-12 2024"]
[Site "Montesilvano"]
[Date "2024.11.24"]
[Round "9.16"]
[White "Belin, Anton"]
[Black "Mamikonyan, Artem T"]
[Result "0-1"]
[ECO "B15"]
[WhiteElo "2138"]
[BlackElo "1918"]
[Annotator "RC"]
[PlyCount "112"]
[EventDate "2024.11.18"]
[EventType "swiss"]
[EventCountry "ITA"]
[SourceTitle "playchess.com"]
[Source "ChessBase"]
[SourceQuality "1"]
[TimeControl "5400+30"]

1. e4 {[%emt 1:31:00]} c6 {[%emt 1:31:00]} 2. d4 {[%emt 0:00:00]} d5 {[%emt 0:00:00]} 3. Nd2 {[%emt 0:00:00]} dxe4 {[%emt 0:00:00]} 4. Nxe4 {[%emt 0:00:00]} Nf6 {[%emt 0:00:00]} 5. Nxf6+ {[%emt 0:00:00]} exf6 {[%emt 0:00:00]} 6. c3 {[%emt 0:00:00]} Bd6 {[%emt 0:00:00]} 7. Bd3 {[%emt 0:00:00]} O-O {[%emt 0:00:00]} 8. Qc2 {[%emt 0:00:00]} Re8+ {[%emt 0:00:00]} 9. Ne2 {[%emt 0:00:00]} h5 {[%emt 0:00:00]} 10. O-O {[%emt 0:00:00]} h4 {[%emt 0:00:00]} 11. h3 {[%emt 0:00:00]} Nd7 {[%emt 0:00:00]} 12. Bd2 {[%emt 0:00:00]} Nf8 {[%emt 0:00:00]} 13. Rae1 {[%emt 0:00:00]} Qc7 {[%emt 0:00:00]} 14. c4 {[%emt 0:00:00]} Qd8 {[%emt 0:00:00]} 15. f4 {[%emt 0:00:00]} Ne6 {[%emt 0:00:00]} 16. f5 {[%emt 0:00:00]} Nxd4 {[%emt 0:00:00]} 17. Nxd4 {[%emt 0:00:00]} Rxe1 {[%emt 0:00:00]} 18. Bxe1 {[%emt 0:00:00]} Bc5 {[%emt 0:00:00]} 19. Bxh4 {[%emt 0:00:00]} Bxd4+ {[%emt 0:00:00]} 20. Kh1 {[%emt 0:00:00]} Be5 {[%emt 0:00:00]} 21. Rd1 {[%emt 0:00:00]} Bd7 {[%emt 0:00:00]} 22. c5 {[%emt 0:00:00]} Qe7 {[%emt 0:00:00]} 23. Re1 {[%emt 0:00:00]} Re8 {[%emt 0:00:00]} 24. Bf2 {[%emt 0:00:00]} Qd8 {[%emt 0:00:00]} 25. Bc4 {[%emt 0:00:00]} Bb8 {[%emt 0:00:00]} 26. Rd1 {[%emt 0:00:00]} Qe7 {[%emt 0:00:00]} 27. Bg1 {[%emt 0:00:00]} Bc8 {[%emt 0:00:00]} 28. b4 {[%emt 0:00:00]} Bc7 {[%emt 0:00:00]} 29. b5 {[%emt 0:00:00]} Qe5 {[%emt 0:00:00]} 30. b6 {[%emt 0:00:00]} axb6 {[%emt 0:00:00]} 31. cxb6 {[%emt 0:00:00]} Bb8 {[%emt 0:00:00]} 32. Qb3 {[%emt 0:00:00]} Qe7 {[%emt 0:00:00]} 33. Qf3 {[%emt 0:00:00]} Rf8 {[%emt 0:00:00]} 34. Qh5 {[%emt 0:00:00]} Bf4 {[%emt 0:00:00]} 35. Rd4 {[%emt 0:00:00]} Bh6 {[%emt 0:00:00]} 36. Rg4 {[%emt 0:03:19]} Kh7 {[%emt 0:00:00]} 37. Rg3 {[%emt 0:00:59]} Qe4 {[%emt 0:00:00]} 38. Bxf7 {[%emt 0:01:26]} Bxf5 {[%emt 0:00:00]} 39. Be3 {[%emt 0:02:14]} g5 {[%emt 0:00:00]} 40. Bb3 {[%emt 0:00:32]} Bg6 {[%emt 0:00:00]} 41. Qg4 {[%emt 0:00:32]} Qb1+ {[%emt 0:00:39]} 42. Qd1 {[%emt 0:01:43]} Qxd1+ {[%emt 0:01:06]} 43. Bxd1 {[%emt 0:00:03]} Ra8 {[%emt 0:00:47]} 44. Bb3 {[%emt 0:01:10]} Be4 {[%emt 0:01:28]} 45. Bd4 {[%emt 0:01:13]} f5 {[%emt 0:00:05]} 46. Rc3 {[%emt 0:01:28]} Rd8 {[%emt 0:00:33]} 47. Rc4 {[%emt 0:01:30]} Kg6 {[%emt 0:01:49]} 48. Kg1 {[%emt 0:00:49]} Bd3 {[%emt 0:01:40]} 49. Ra4 {[%emt 0:00:44]} Bb5 {[%emt 0:00:07]} 50. Rb4 {[%emt 0:00:03]} Bf8 {[%emt 0:00:07]} 51. Bc3 {[%emt 0:00:16]} Bxb4 {[%emt 0:00:08]} 52. Bxb4 {[%emt 0:00:05]} Re8 {[%emt 0:00:38]} 53. Kf2 {[%emt 0:00:42]} Re2+ {[%emt 0:00:08]} 54. Kf3 {[%emt 0:00:22]} g4+ {[%emt 0:00:24]} 55. hxg4 {[%emt 0:00:11]} fxg4+ {[%emt 0:00:17]} 56. Kxg4 {[%emt 0:00:22]} Re4+ {[%emt 0:00:21]} 0-1

[Event "FIDE WCCC Open-12 2024"]
[Site "Montesilvano"]
[Date "2024.11.24"]
[Round "9.17"]
[White "Gao, Heye"]
[Black "Fulgentini, Edoardo"]
[Result "1-0"]
[ECO "B33"]
[WhiteElo "1933"]
[BlackElo "2075"]
[Annotator "NA RC"]
[PlyCount "59"]
[EventDate "2024.11.18"]
[EventType "swiss"]
[EventCountry "ITA"]
[SourceTitle "playchess.com"]
[Source "ChessBase"]
[SourceQuality "1"]
[TimeControl "5400+30"]

1. e4 {[%emt 0:00:20]} c5 {[%emt 0:00:05]} 2. Nf3 {[%emt 0:00:38]} Nc6 {[%emt 0:00:08]} 3. d4 {[%emt 0:00:34]} cxd4 {[%emt 0:00:03]} 4. Nxd4 {[%emt 0:00:29]} Nf6 {[%emt 0:00:02]} 5. Nc3 {[%emt 0:00:56]} e6 {[%emt 0:00:06]} 6. Ndb5 {[%emt 0:01:51]} d6 {[%emt 0:00:07]} 7. Bf4 {[%emt 0:01:00]} e5 {[%emt 0:00:04]} 8. Bg5 {[%emt 0:00:48]} a6 {[%emt 0:00:07]} 9. Na3 {[%emt 0:00:43]} b5 {[%emt 0:00:14]} 10. Nd5 {[%emt 0:01:19]} Be7 {[%emt 0:00:02]} 11. Bxf6 {[%emt 0:00:49]} Bxf6 {[%emt 1:35:02]} 12. c3 {[%emt 0:00:57]} Rb8 {[%emt 0:00:00]} 13. Nc2 {[%emt 0:01:14]} Bg5 {[%emt 0:00:00]} 14. a4 {[%emt 0:00:31]} bxa4 {[%emt 0:00:00]} 15. Ncb4 {[%emt 0:00:57]} Nxb4 {[%emt 0:00:00]} 16. cxb4 {[%emt 0:00:57]} Bd7 {[%emt 0:00:00]} 17. Bxa6 {[%emt 0:00:52]} O-O {[%emt 0:00:00]} 18. O-O {[%emt 0:00:34]} Bc6 {[%emt 0:00:00]} 19. Rxa4 {[%emt 0:03:23]} Bxa4 {[%emt 0:00:00]} 20. Qxa4 {[%emt 0:00:43]} g6 {[%emt 0:00:00]} 21. b5 {[%emt 0:04:22]} f5 {[%emt 0:00:00]} 22. Qc4 {[%emt 0:02:14]} Rf7 {[%emt 0:00:00]} 23. b6 {[%emt 0:09:25]} Rxb6 {[%emt 0:00:00]} 24. Nxb6 {[%emt 0:02:06]} Qxb6 {[%emt 0:00:00]} 25. Qc8+ {[%emt 0:05:00]} Kg7 {[%emt 0:00:00]} 26. Bc4 {[%emt 0:03:45]} Rf8 {[%emt 0:00:00]} 27. Qd7+ {[%emt 0:02:10]} Kh6 {[%emt 0:00:00]} 28. exf5 {[%emt 0:01:13]} Rxf5 {[%emt 0:00:00]} 29. Bg8 {[%emt 0:00:55]} Kh5 {[%emt 0:00:00]} 30. h3 {[%emt 0:01:05]} 1-0

[Event "FIDE WCCC Open-12 2024"]
[Site "Montesilvano"]
[Date "2024.11.24"]
[Round "9.18"]
[White "Obidjonov, Oriyat"]
[Black "Qu, Haoming"]
[Result "1/2-1/2"]
[ECO "C41"]
[WhiteElo "2074"]
[BlackElo "1969"]
[Annotator "NA RC"]
[PlyCount "121"]
[EventDate "2024.11.18"]
[EventType "swiss"]
[EventCountry "ITA"]
[SourceTitle "playchess.com"]
[Source "ChessBase"]
[SourceQuality "1"]
[TimeControl "5400+30"]

1. e4 {[%emt 0:00:17]} d6 {[%emt 0:00:13]} 2. d4 {[%emt 0:00:13]} Nf6 {[%emt 0:00:07]} 3. Nc3 {[%emt 0:00:09]} e5 {[%emt 0:00:12]} 4. Nf3 {[%emt 0:00:31]} exd4 {[%emt 0:00:16]} 5. Nxd4 {[%emt 0:01:38]} Be7 {[%emt 0:00:17]} 6. Be2 {[%emt 0:02:40]} O-O {[%emt 0:00:15]} 7. O-O {[%emt 0:00:41]} Re8 {[%emt 0:00:57]} 8. Re1 {[%emt 0:02:15]} Nbd7 {[%emt 0:01:04]} 9. Nf5 {[%emt 0:04:46]} Bf8 {[%emt 0:06:54]} 10. Bf1 {[%emt 0:16:02]} Nc5 {[%emt 0:10:32]} 11. Ng3 {[%emt 0:02:06]} a5 {[%emt 0:03:39]} 12. Bf4 {[%emt 0:04:11]} c6 {[%emt 0:17:20]} 13. h3 {[%emt 0:07:29]} Be6 {[%emt 0:04:15]} 14. a3 {[%emt 0:10:14]} b5 {[%emt 0:03:59]} 15. b4 {[%emt 0:11:51]} axb4 {[%emt 0:07:48]} 16. axb4 {[%emt 0:01:40]} Na6 {[%emt 0:00:27]} 17. Nxb5 {[%emt 0:01:24]} cxb5 {[%emt 0:01:19]} 18. Bxb5 {[%emt 0:01:15]} Qb6 {[%emt 0:05:35]} 19. Bxe8 {[%emt 0:00:35]} Rxe8 {[%emt 0:00:01]} 20. c3 {[%emt 0:00:26]} Bc4 {[%emt 0:06:58]} 21. Qd2 {[%emt 0:08:38]} g6 {[%emt 0:07:52]} 22. Bh6 {[%emt 0:02:52]} Nd7 {[%emt 0:07:26]} 23. Rad1 {[%emt 0:01:43]} Bb3 {[%emt 0:02:01]} 24. Rb1 {[%emt 0:01:03]} Be6 {[%emt 0:00:27]} 25. Bxf8 {[%emt 0:00:11]} Rxf8 {[%emt 0:00:47]} 26. Red1 {[%emt 0:01:24]} Nc7 {[%emt 0:00:56]} 27. Qxd6 {[%emt 0:02:14]} Nb5 {[%emt 0:01:11]} 28. Qd2 {[%emt 0:01:20]} Ne5 {[%emt 0:00:49]} 29. Rbc1 {[%emt 0:02:08]} Bb3 {[%emt 0:01:30]} 30. Rf1 {[%emt 0:02:41]} f6 {[%emt 0:01:28]} 31. c4 {[%emt 0:00:48]} Rd8 {[%emt 0:01:04]} 32. c5 {[%emt 0:02:11]} Qc7 {[%emt 0:00:00]} 33. Qb2 {[%emt 0:02:52]} Qf7 {[%emt 0:01:20]} 34. Ra1 {[%emt 0:01:21]} Nc6 {[%emt 0:02:39]} 35. Ra6 {[%emt 0:01:54]} Nbd4 {[%emt 0:02:40]} 36. Rfa1 {[%emt 0:01:55]} Nc2 {[%emt 0:01:51]} 37. Rb1 {[%emt 0:00:05]} N2xb4 {[%emt 0:01:30]} 38. Rxc6 {[%emt 0:00:13]} Nxc6 {[%emt 0:00:17]} 39. Qxb3 {[%emt 0:00:04]} Qxb3 {[%emt 0:00:43]} 40. Rxb3 {[%emt 0:00:04]} Rd1+ {[%emt 0:01:51]} 41. Kh2 {[%emt 0:01:42]} Rc1 {[%emt 0:00:00]} 42. e5 {[%emt 0:00:35]} f5 {[%emt 0:00:00]} 43. f4 {[%emt 0:01:19]} Rxc5 {[%emt 0:01:30]} 44. Nf1 {[%emt 0:01:18]} Nd4 {[%emt 0:00:00]} 45. Rb8+ {[%emt 0:00:28]} Kg7 {[%emt 0:00:00]} 46. Rb7+ {[%emt 0:00:05]} Kg8 {[%emt 0:00:00]} 47. h4 {[%emt 0:01:06]} Ne6 {[%emt 0:00:00]} 48. g3 {[%emt 0:00:41]} Rc2+ {[%emt 0:00:42]} 49. Kh3 {[%emt 0:00:45]} Re2 {[%emt 0:00:02]} 50. Rd7 {[%emt 0:00:15]} h6 {[%emt 0:00:23]} 51. Nd2 {[%emt 0:00:31]} g5 {[%emt 0:00:11]} 52. hxg5 {[%emt 0:01:06]} hxg5 {[%emt 0:00:01]} 53. fxg5 {[%emt 0:00:31]} Nxg5+ {[%emt 0:00:10]} 54. Kh4 {[%emt 0:00:04]} Rxd2 {[%emt 0:01:19]} 55. Rxd2 {[%emt 0:00:37]} Nf3+ {[%emt 0:00:00]} 56. Kh5 {[%emt 0:00:01]} Nxd2 {[%emt 0:00:05]} 57. e6 {[%emt 0:00:40]} Ne4 {[%emt 0:00:47]} 58. Kg6 {[%emt 0:00:05]} Nd6 {[%emt 0:00:24]} 59. e7 {[%emt 0:00:11]} Ne8 {[%emt 0:00:10]} 60. Kxf5 {[%emt 0:00:07]} Kf7 {[%emt 0:00:02]} 61. Ke4 {[%emt 0:01:18]} 1/2-1/2

[Event "FIDE WCCC Open-12 2024"]
[Site "Montesilvano"]
[Date "2024.11.24"]
[Round "9.19"]
[White "Karthi, Jashith"]
[Black "Yerzhanuly Yernur"]
[Result "1/2-1/2"]
[ECO "E86"]
[WhiteElo "2073"]
[BlackElo "1917"]
[Annotator "NA RC"]
[PlyCount "141"]
[EventDate "2024.11.18"]
[EventType "swiss"]
[EventCountry "ITA"]
[SourceTitle "playchess.com"]
[Source "ChessBase"]
[SourceQuality "1"]
[TimeControl "5400+30"]

1. d4 {[%emt 0:00:04]} Nf6 {[%emt 0:00:05]} 2. c4 {[%emt 0:00:07]} g6 {[%emt 0:00:03]} 3. f3 {[%emt 0:00:10]} Bg7 {[%emt 0:00:37]} 4. e4 {[%emt 0:00:06]} d6 {[%emt 0:00:06]} 5. Nc3 {[%emt 0:00:05]} O-O {[%emt 0:00:07]} 6. Be3 {[%emt 0:00:04]} e5 {[%emt 0:01:17]} 7. Nge2 {[%emt 0:01:01]} c6 {[%emt 0:10:56]} 8. Qd2 {[%emt 0:00:51]} exd4 {[%emt 0:09:48]} 9. Nxd4 {[%emt 0:00:27]} d5 {[%emt 0:00:54]} 10. cxd5 {[%emt 0:06:51]} cxd5 {[%emt 0:00:25]} 11. e5 {[%emt 0:00:53]} Nfd7 {[%emt 0:14:36]} 12. f4 {[%emt 0:01:25]} Nc6 {[%emt 0:04:28]} 13. O-O-O {[%emt 0:08:41]} Nxd4 {[%emt 0:07:31]} 14. Bxd4 {[%emt 0:04:59]} f6 {[%emt 0:02:30]} 15. e6 {[%emt 0:10:35]} Nb6 {[%emt 0:00:36]} 16. f5 {[%emt 0:05:20]} gxf5 {[%emt 0:01:15]} 17. Bc5 {[%emt 0:01:06]} Bxe6 {[%emt 0:09:54]} 18. Bxf8 {[%emt 0:00:34]} Bxf8 {[%emt 0:03:44]} 19. Nb5 {[%emt 0:04:17]} Rc8+ {[%emt 0:03:08]} 20. Kb1 {[%emt 0:01:03]} Nc4 {[%emt 0:00:18]} 21. Bxc4 {[%emt 0:01:12]} Rxc4 {[%emt 0:01:30]} 22. Nd4 {[%emt 0:07:00]} Bf7 {[%emt 0:01:48]} 23. Ka1 {[%emt 0:02:31]} Qb6 {[%emt 0:04:05]} 24. Rhf1 {[%emt 0:13:42]} Ra4 {[%emt 0:04:30]} 25. b3 {[%emt 0:08:32]} Ra5 {[%emt 0:02:46]} 26. Nxf5 {[%emt 0:03:14]} Ra3 {[%emt 0:01:53]} 27. Rf3 {[%emt 0:02:09]} Qa6 {[%emt 0:02:40]} 28. Qb2 {[%emt 0:04:24]} Ra5 {[%emt 0:01:09]} 29. Rdf1 {[%emt 0:01:45]} Bg6 {[%emt 0:00:35]} 30. g4 {[%emt 0:02:05]} Ba3 {[%emt 0:00:57]} 31. Qc2 {[%emt 0:02:30]} Bc5 {[%emt 0:01:43]} 32. Qd2 {[%emt 0:02:16]} Bb4 {[%emt 0:02:31]} 33. Qc2 {[%emt 0:00:52]} Rc5 {[%emt 0:00:26]} 34. Qd3 {[%emt 0:01:30]} Bc3+ {[%emt 0:00:54]} 35. Kb1 {[%emt 0:00:06]} Qa3 {[%emt 0:00:24]} 36. R3f2 {[%emt 0:00:07]} a5 {[%emt 0:00:52]} 37. Ne7+ {[%emt 0:00:30]} Kg7 {[%emt 0:00:02]} 38. Nxg6 {[%emt 0:00:11]} hxg6 {[%emt 0:00:06]} 39. Rc2 {[%emt 0:00:23]} d4 {[%emt 0:00:39]} 40. Qf3 {[%emt 0:02:47]} Rc6 {[%emt 0:00:11]} 41. g5 {[%emt 0:00:47]} f5 {[%emt 0:00:43]} 42. Qd5 {[%emt 0:02:03]} Qe7 {[%emt 0:00:28]} 43. Qb5 {[%emt 0:01:06]} Re6 {[%emt 0:00:58]} 44. Qd3 {[%emt 0:00:26]} a4 {[%emt 0:00:11]} 45. Rxc3 {[%emt 0:00:52]} dxc3 {[%emt 0:00:38]} 46. Qxc3+ {[%emt 0:00:03]} Kf7 {[%emt 0:00:31]} 47. Rc1 {[%emt 0:00:13]} axb3 {[%emt 0:00:56]} 48. Qxb3 {[%emt 0:00:32]} Kg7 {[%emt 0:00:33]} 49. Qc3+ {[%emt 0:00:29]} Kf7 {[%emt 0:01:46]} 50. Qh8 {[%emt 0:01:36]} Qxg5 {[%emt 0:02:24]} 51. Qh7+ {[%emt 0:00:21]} Kf6 {[%emt 0:00:04]} 52. Qh8+ {[%emt 0:00:09]} Kf7 {[%emt 0:00:06]} 53. Rc7+ {[%emt 0:00:28]} Re7 {[%emt 0:00:05]} 54. Qh7+ {[%emt 0:00:22]} Ke6 {[%emt 0:00:11]} 55. Rxe7+ {[%emt 0:00:46]} Qxe7 {[%emt 0:00:06]} 56. Qxg6+ {[%emt 0:00:05]} Ke5 {[%emt 0:01:34]} 57. Qg3+ {[%emt 0:00:17]} Kd4 {[%emt 0:00:57]} 58. Qf2+ {[%emt 0:00:16]} Qe3 {[%emt 0:00:30]} 59. Qb2+ {[%emt 0:01:09]} Kc4 {[%emt 0:01:55]} 60. Qc2+ {[%emt 0:00:15]} Kb4 {[%emt 0:00:32]} 61. Qb2+ {[%emt 0:00:59]} Kc4 {[%emt 0:00:01]} 62. Qxb7 {[%emt 0:01:12]} Qg1+ {[%emt 0:00:47]} 63. Kc2 {[%emt 0:00:13]} Qxh2+ {[%emt 0:00:09]} 64. Kd1 {[%emt 0:00:12]} Qg1+ {[%emt 0:00:35]} 65. Ke2 {[%emt 0:00:19]} Qg4+ {[%emt 0:00:06]} 66. Qf3 {[%emt 0:00:07]} Qxf3+ {[%emt 0:00:09]} 67. Kxf3 {[%emt 0:00:05]} Kb4 {[%emt 0:00:05]} 68. Kf4 {[%emt 0:00:04]} Ka3 {[%emt 0:00:05]} 69. Kf3 {[%emt 0:00:04]} f4 {[%emt 0:00:06]} 70. Kxf4 {[%emt 0:00:03]} Kxa2 {[%emt 0:00:09]} 71. Ke4 {[%emt 0:04:02]} 1/2-1/2

[Event "FIDE WCCC Open-12 2024"]
[Site "Montesilvano"]
[Date "2024.11.24"]
[Round "9.20"]
[White "Baturin-Vinogradov, Miroslav"]
[Black "Hallmundarson, Birkir"]
[Result "1-0"]
[ECO "E04"]
[WhiteElo "2048"]
[BlackElo "1914"]
[Annotator "NA RC"]
[PlyCount "91"]
[EventDate "2024.11.18"]
[EventType "swiss"]
[EventCountry "ITA"]
[SourceTitle "playchess.com"]
[Source "ChessBase"]
[SourceQuality "1"]
[TimeControl "5400+30"]

1. d4 {[%emt 0:00:02]} Nf6 {[%emt 0:00:05]} 2. c4 {[%emt 0:00:06]} e6 {[%emt 0:00:04]} 3. Nf3 {[%emt 0:00:05]} d5 {[%emt 0:00:04]} 4. g3 {[%emt 0:00:06]} dxc4 {[%emt 0:00:07]} 5. Bg2 {[%emt 0:00:06]} Bb4+ {[%emt 0:00:05]} 6. Bd2 {[%emt 0:01:29]} a5 {[%emt 0:00:06]} 7. a3 {[%emt 0:01:55]} Bxd2+ {[%emt 0:01:45]} 8. Nbxd2 {[%emt 0:00:19]} b5 {[%emt 0:01:02]} 9. b3 {[%emt 0:00:49]} cxb3 {[%emt 0:03:17]} 10. Qxb3 {[%emt 0:00:28]} c6 {[%emt 0:12:57]} 11. O-O {[%emt 0:00:47]} Bb7 {[%emt 0:03:32]} 12. Rfc1 {[%emt 0:00:38]} O-O {[%emt 0:02:26]} 13. Qb2 {[%emt 0:00:47]} Nbd7 {[%emt 0:01:23]} 14. Ne1 {[%emt 0:03:22]} Qb6 {[%emt 0:02:14]} 15. Nd3 {[%emt 0:01:37]} Rac8 {[%emt 0:02:48]} 16. Nb3 {[%emt 0:02:31]} Rfd8 {[%emt 0:00:52]} 17. e3 {[%emt 0:04:29]} Nd5 {[%emt 0:02:27]} 18. Nbc5 {[%emt 0:03:28]} Nxc5 {[%emt 0:01:07]} 19. Nxc5 {[%emt 0:03:26]} Rc7 {[%emt 0:04:35]} 20. Rab1 {[%emt 0:06:22]} h6 {[%emt 0:03:31]} 21. h4 {[%emt 0:05:45]} Rb8 {[%emt 0:04:53]} 22. Qd2 {[%emt 0:06:44]} Rd8 {[%emt 0:52:10]} 23. f4 {[%emt 0:09:52]} Bc8 {[%emt 0:00:00]} 24. Bf3 {[%emt 0:03:45]} Qa7 {[%emt 0:00:00]} 25. Qf2 {[%emt 0:06:52]} Nb6 {[%emt 0:00:00]} 26. g4 {[%emt 0:06:19]} a4 {[%emt 0:00:00]} 27. Kh2 {[%emt 0:04:46]} f5 {[%emt 0:00:00]} 28. g5 {[%emt 0:02:49]} hxg5 {[%emt 0:00:00]} 29. hxg5 {[%emt 0:00:16]} g6 {[%emt 0:00:00]} 30. Kg3 {[%emt 0:01:18]} Nd5 {[%emt 0:00:00]} 31. Rh1 {[%emt 0:03:14]} Rh7 {[%emt 0:00:00]} 32. Rxh7 {[%emt 0:01:31]} Qxh7 {[%emt 0:00:00]} 33. Rh1 {[%emt 0:00:57]} Qg7 {[%emt 0:00:00]} 34. Nd3 {[%emt 0:02:41]} Bd7 {[%emt 0:00:00]} 35. Ne5 {[%emt 0:02:35]} Be8 {[%emt 0:00:00]} 36. Bxd5 {[%emt 0:01:50]} exd5 {[%emt 0:07:00]} 37. Rh6 {[%emt 0:01:10]} b4 {[%emt 0:00:00]} 38. axb4 {[%emt 0:00:50]} a3 {[%emt 0:00:00]} 39. Qa2 {[%emt 0:01:59]} Ra8 {[%emt 0:00:00]} 40. b5 {[%emt 0:01:40]} Qb7 {[%emt 0:00:00]} 41. bxc6 {[%emt 0:01:09]} Qb5 {[%emt 0:00:00]} 42. Qh2 {[%emt 0:01:23]} Kf8 {[%emt 0:00:00]} 43. Rh8+ {[%emt 0:00:17]} Ke7 {[%emt 0:00:00]} 44. Qh7+ {[%emt 0:00:09]} Kd6 {[%emt 0:00:00]} 45. Rxe8 {[%emt 0:00:23]} Qxc6 {[%emt 0:00:00]} 46. Qe7# {[%emt 0:00:37]} 1-0